Workbook

Sheet Dataset
B3: Revenue Comparison
B5: Name | C5: Revenue (Last Year) | D5: Revenue (This Year) | E5: Change | F5: % Change
B6: James | C6: -2000 | D6: -1500 | E6: =D6-C6 -> 500
B7: Christina | C7: 5000 | D7: -3950 | E7: =D7-C7 -> -8950
B8: Bell | C8: -4500 | D8: -4300 | E8: 200
B9: John | C9: 4350 | D9: 3500 | E9: -850
B10: Nox | C10: -2500 | D10: 2135 | E10: 4635
B11: Patty | C11: 3000 | D11: -1800 | E11: -4800

Sheet Approach 1
B3: Revenue Comparison
B5: Name | C5: Revenue (Last Year) | D5: Revenue (This Year) | E5: Change | F5: % Change
B6: James | C6: 2000 | D6: -1500 | E6: =D6-C6 -> -3500 | F6: =(D6-C6)/C6 -> -1.75
B7: Christina | C7: 5000 | D7: -3950 | E7: =D7-C7 -> -8950 | F7: =(D7-C7)/C7 -> -1.79
B8: Bell | C8: 4500 | D8: -4300 | E8: -8800 | F8: -1.955555556
B9: John | C9: 4350 | D9: -3500 | E9: -7850 | F9: -1.804597701
B10: Nox | C10: 2500 | D10: -2135 | E10: -4635 | F10: -1.854
B11: Patty | C11: 3000 | D11: -1800 | E11: -4800 | F11: -1.6

Sheet Approach 2
B3: Revenue Comparison
B5: Name | C5: Revenue (Last Year) | D5: Revenue (This Year) | E5: Change | F5: % Change
B6: James | C6: -2000 | D6: -1500 | E6: =D6-C6 -> 500 | F6: =(D6-C6)/ABS(C6) -> 0.25
B7: Christina | C7: -5000 | D7: -3950 | E7: =D7-C7 -> 1050 | F7: =(D7-C7)/ABS(C7) -> 0.21
B8: Bell | C8: -4500 | D8: -4300 | E8: 200 | F8: 0.04444444444
B9: John | C9: -4350 | D9: -3500 | E9: 850 | F9: 0.1954022989
B10: Nox | C10: -2500 | D10: -2135 | E10: 365 | F10: 0.146
B11: Patty | C11: -3000 | D11: -1800 | E11: 1200 | F11: 0.4

Sheet Approach 3
B3: Revenue Comparison
B5: Name | C5: Revenue (Last Year) | D5: Revenue (This Year) | E5: Change | F5: % Change
B6: James | C6: 2000 | D6: -1500 | E6: =D6-C6 -> -3500 | F6: =IF(MIN(C6,D6)<=0,"No Result",(D6/C6)-1) -> No Result
B7: Christina | C7: 5000 | D7: 3950 | E7: =D7-C7 -> -1050 | F7: =IF(MIN(C7,D7)<=0,"No Result",(D7/C7)-1) -> -0.21
B8: Bell | C8: -4500 | D8: -4300 | E8: 200 | F8: No Result
B9: John | C9: 4350 | D9: 3500 | E9: -850 | F9: -0.1954022989
B10: Nox | C10: -2500 | D10: -2135 | E10: 365 | F10: No Result
B11: Patty | C11: 3000 | D11: -1800 | E11: -4800 | F11: No Result

Sheet Approach 4
B3: Revenue Comparison
B5: Name | C5: Revenue (Last Year) | D5: Revenue (This Year) | E5: Change | F5: % Change
B6: James | C6: -2000 | D6: -1500 | E6: =D6-C6 -> 500 | F6: =IF(MIN(C6,D6)<=0,IF((D6-C6)>0,"Positive","Negative"),(D6/C6)-1) -> Positive
B7: Christina | C7: 5000 | D7: -3950 | E7: =D7-C7 -> -8950 | F7: =IF(MIN(C7,D7)<=0,IF((D7-C7)>0,"Positive","Negative"),(D7/C7)-1) -> Negative
B8: Bell | C8: -4500 | D8: -4300 | E8: 200 | F8: Positive
B9: John | C9: 4350 | D9: 3500 | E9: -850 | F9: -0.1954022989
B10: Nox | C10: -2500 | D10: 2135 | E10: 4635 | F10: Positive
B11: Patty | C11: 3000 | D11: -1800 | E11: -4800 | F11: Negative

Sheet Approach 5
B3: Revenue Comparison
B5: Name | C5: Revenue (Last Year) | D5: Revenue (This Year) | E5: Change | F5: % Change
B6: James | C6: -2000 | D6: -1500 | E6: =D6-C6 -> 500
B7: Christina | C7: 5000 | D7: -3950 | E7: =D7-C7 -> -8950
B8: Bell | C8: -4500 | D8: -4300 | E8: 200
B9: John | C9: 4350 | D9: 3500 | E9: -850
B10: Nox | C10: -2500 | D10: 2135 | E10: 4635
B11: Patty | C11: 3000 | D11: -1800 | E11: -4800

Sheet Increase From 0
B3: Bell's Yearly Profit
B5: Year | C5: Profit | D5: Change (%)
B6: 2010 | C6: 1503
B7: 2011 | C7: 0 | D7: =IF(C6=0,SIGN(C7),C7/C6-1) -> -1
B8: 2012 | C8: 1600 | D8: =IF(C7=0,SIGN(C8),C8/C7-1) -> 1
B9: 2013 | C9: 1400 | D9: -0.125
B10: 2014 | C10: 1325 | D10: -0.05357142857
B11: 2015 | C11: 1873 | D11: 0.4135849057
B12: 2016 | C12: 2000 | D12: 0.06780565937
B13: 2017 | C13: 1900 | D13: -0.05
B14: 2018 | C14: 1832 | D14: -0.03578947368
B15: 2019 | C15: 1500 | D15: -0.1812227074
B16: 2020 | C16: 950 | D16: -0.3666666667
B17: 2021 | C17: 1005 | D17: 0.05789473684
